fUSD/lending_fUSD_20260612
["ID","MTS","AMOUNT","RATE_DAILY","PERIOD"]
[424846965,1781202647000,-500.0,0.00014999,2]
[424846956,1781202647000,-2503.54,0.00014999,2]
[424846962,1781202647000,-500.0,0.00014999,2]
[424846963,1781202647000,-500.0,0.00014999,2]
[424846968,1781202647000,-567.54,0.00014999,2]
[424846973,1781202647000,-567.77,0.00014999,2]
[424847030,1781202648000,-151.0,0.00016438,2]
[424847041,1781202648000,-1314.640837,0.00016438,2]
[424847032,1781202648000,-151.0,0.00016438,2]
[424847035,1781202648000,-151.0,0.00016438,2]
[424847033,1781202648000,-151.0,0.00016438,2]
[424847039,1781202648000,-1314.640837,0.00016438,2]
[424847034,1781202648000,-151.0,0.00016438,2]
[424847040,1781202648000,-1314.640837,0.00016438,2]
[424847037,1781202648000,-1314.640837,0.00016438,2]
[424847053,1781202648000,-158.55225596,0.00017295,2]
[424847038,1781202648000,-1314.640837,0.00016438,2]
[424847042,1781202648000,-1314.640837,0.00016438,2]
[424847044,1781202648000,-1314.640837,0.00016438,2]
[424847052,1781202648000,-284.68,0.00017246,2]
[424847025,1781202648000,-711.19,0.00016308,2]
[424847043,1781202648000,-1314.640837,0.00016438,2]
[424847045,1781202648000,-1672.7364795,0.00016492,2]
[424847046,1781202648000,-9854.934,0.00016501,2]
[424847047,1781202648000,-168.39,0.00016712,2]
[424847050,1781202648000,-636.0,0.00017073,2]
[424847036,1781202648000,-450.27,0.00016438,2]
[424847028,1781202648000,-151.0,0.00016438,2]
[424847020,1781202648000,-160.0,0.00016,3]
[424847027,1781202648000,-198.30946013,0.00016438,2]
[424847049,1781202648000,-1734.62772924,0.0001704,2]
[424847005,1781202648000,-199.5,0.0001557,2]
[424847009,1781202648000,-3000.0,0.00015669,2]
[424847007,1781202648000,-200.88,0.00015617,2]
[424847006,1781202648000,-1252.0,0.00015583,2]
[424847011,1781202648000,-215.2,0.00015669,2]
[424847010,1781202648000,-699.74,0.00015669,2]
[424847008,1781202648000,-554.96,0.00015617,2]
[424847013,1781202648000,-749.62,0.00015711,2]
[424847012,1781202648000,-358.66,0.00015695,2]
[424847017,1781202648000,-300.0,0.00015899,2]
[424847021,1781202648000,-300.0,0.00016,2]
[424847019,1781202648000,-1613.0535,0.00015944,2]
[424847018,1781202648000,-653.08,0.000159,2]
[424847015,1781202648000,-284.68,0.00015809,2]
[424847022,1781202648000,-215.95576085,0.00016,3]
[424847016,1781202648000,-1486.12,0.0001584,2]
[424847024,1781202648000,-2000.0,0.00016265,2]
[424847023,1781202648000,-151.38,0.00016022,2]
[424847026,1781202648000,-1183.3,0.00016438,2]
[424847031,1781202648000,-151.0,0.00016438,2]
[424847029,1781202648000,-151.0,0.00016438,2]
[424847014,1781202648000,-929.30350052,0.00015771,2]
[424847051,1781202648000,-572.0,0.00017078,2]
[424847055,1781202648000,-347.17681518,0.00017364,2]
[424847082,1781202648000,-2307.0,0.0001817,5]
[424847081,1781202648000,-153.0,0.00018156,2]
[424847083,1781202648000,-2476.0,0.0001817,5]
[424847079,1781202648000,-150.0,0.00018156,2]
[424847080,1781202648000,-151.0,0.00018156,2]
[424847084,1781202648000,-653.08,0.000182,2]
[424847086,1781202648000,-382.0,0.00018343,2]
[424847088,1781202648000,-6076.0,0.00018343,2]
[424847092,1781202648000,-10000.0,0.00018502,2]
[424847078,1781202648000,-1865.36488656,0.00018136,2]
[424847090,1781202648000,-231.12275902,0.000184,2]
[424847095,1781202648000,-1934.38338736,0.00018684,2]
[424847089,1781202648000,-3559.941,0.00018343,2]
[424847091,1781202648000,-1183.3,0.0001841,2]
[424847093,1781202648000,-525.0,0.00018626,2]
[424847087,1781202648000,-1227.0,0.00018343,2]
[424847098,1781202648000,-1904.64,0.0001872,2]
[424847097,1781202648000,-11533.36,0.0001872,2]
[424847099,1781202648000,-3102.91,0.0001872,2]
[424847048,1781202648000,-2000.0,0.0001677,2]
[424847094,1781202648000,-2453.04031213,0.00018642,2]
[424847076,1781202648000,-525.0,0.00018,2]
[424847096,1781202648000,-784.89,0.0001872,2]
[424847085,1781202648000,-1274.0,0.00018343,2]
[424847054,1781202648000,-157.46172826,0.00017363,2]
[424847077,1781202648000,-2536.0,0.00018043,5]
[424847056,1781202648000,-303.00381317,0.00017364,2]
[424847057,1781202648000,-206.40590301,0.00017364,2]
[424847060,1781202648000,-19999.99,0.00017728,2]
[424847062,1781202648000,-499.99,0.00017728,2]
[424847063,1781202648000,-9999.99,0.00017728,2]
[424847058,1781202648000,-151.0,0.00017364,2]
[424847061,1781202648000,-150.99,0.00017728,2]
[424847065,1781202648000,-8219.79,0.00017728,2]
[424847059,1781202648000,-1798.80895522,0.00017588,2]
[424847067,1781202648000,-300.0,0.00017728,2]
[424847074,1781202648000,-297.99,0.00018,2]
[424847066,1781202648000,-9999.99,0.00017728,2]
[424847070,1781202648000,-243.42502007,0.00018,2]
[424847071,1781202648000,-413.48322793,0.00018,2]
[424847068,1781202648000,-9999.99,0.00017728,2]
[424847072,1781202648000,-26173.53,0.00018,2]
[424847073,1781202648000,-12942.03,0.00018,2]
[424847064,1781202648000,-999.99,0.00017728,2]
[424847069,1781202648000,-2000.0,0.00017892,2]
[424847075,1781202648000,-350.0,0.00018,2]
[424847130,1781202649000,-200.0,0.0001956,2]
[424847131,1781202649000,-929.30350052,0.00019597,2]
[424847135,1781202649000,-157.57217,0.0001961,2]
[424847139,1781202649000,-578.20924308,0.0001978,2]
[424847137,1781202649000,-174.61919141,0.0001978,2]
[424847133,1781202649000,-157.57216,0.0001961,2]
[424847140,1781202649000,-155.57259525,0.0001978,2]
[424847134,1781202649000,-157.57217,0.0001961,2]
[424847132,1781202649000,-653.08,0.000196,2]
[424847141,1781202649000,-500.0,0.0001978,2]
[424847136,1781202649000,-500.0,0.0001978,2]
[424847138,1781202649000,-200.0,0.0001978,2]
[424847152,1781202649000,-500.0,0.0001978,2]
[424847153,1781202649000,-225.18697532,0.0001978,2]
[424847145,1781202649000,-151.0,0.0001978,2]
[424847144,1781202649000,-1367.87611253,0.0001978,2]
[424847142,1781202649000,-225.18697534,0.0001978,2]
[424847146,1781202649000,-151.0,0.0001978,2]
[424847150,1781202649000,-151.0,0.0001978,2]
[424847147,1781202649000,-151.0,0.0001978,2]
[424847148,1781202649000,-200.33830666,0.0001978,2]
[424847151,1781202649000,-2287.58423773,0.0001978,2]
[424847149,1781202649000,-500.0,0.0001978,2]
[424847154,1781202649000,-151.0,0.0001978,2]
[424847128,1781202649000,-160.0,0.000194,7]
[424847143,1781202649000,-500.0,0.0001978,2]
[424847125,1781202649000,-200.0,0.00019282,2]
[424847107,1781202649000,-232384.10712403,0.00019,2]
[424847127,1781202649000,-215.95576085,0.00019339,7]
[424847157,1781202649000,-151.0,0.0001978,2]
[424847102,1781202649000,-1051.0,0.00018745,5]
[424847100,1781202649000,-26046.27,0.0001872,2]
[424847106,1781202649000,-2083.90332132,0.00019,2]
[424847101,1781202649000,-784.89,0.0001872,2]
[424847105,1781202649000,-150.0,0.0001892,2]
[424847104,1781202649000,-1000.0,0.000189,2]
[424847103,1781202649000,-200.0,0.00018817,2]
[424847108,1781202649000,-248.0,0.00019,2]
[424847113,1781202649000,-802.0,0.00019,2]
[424847112,1781202649000,-206.0,0.00019,2]
[424847111,1781202649000,-345.0,0.00019,2]
[424847126,1781202649000,-22051.1428621,0.00019339,7]
[424847116,1781202649000,-389.0,0.00019,2]
[424847114,1781202649000,-364.0,0.00019,2]
[424847110,1781202649000,-880.0,0.00019,2]
[424847115,1781202649000,-1292.0,0.00019,2]
[424847117,1781202649000,-241.0,0.00019,2]
[424847118,1781202649000,-199.0,0.00019,2]
[424847120,1781202649000,-260.0,0.00019,2]
[424847119,1781202649000,-715.0,0.00019,2]
[424847122,1781202649000,-155.303787,0.00019178,2]
[424847121,1781202649000,-151.0,0.00019178,2]
[424847123,1781202649000,-2005.9555727,0.00019232,2]
[424847124,1781202649000,-525.0,0.00019253,3]
[424847129,1781202649000,-2000.0,0.00019518,2]
[424847109,1781202649000,-269.0,0.00019,2]
[424847156,1781202649000,-500.0,0.0001978,2]
[424847196,1781202649000,-500.0,0.0001978,2]
[424847160,1781202649000,-500.0,0.0001978,2]
[424847200,1781202649000,-2080.17592889,0.0001978,2]
[424847201,1781202649000,-500.0,0.0001978,2]
[424847197,1781202649000,-152.0,0.0001978,2]
[424847199,1781202649000,-151.0,0.0001978,2]
[424847198,1781202649000,-1428.38747117,0.0001978,2]
[424847189,1781202649000,-1328.27659266,0.0001978,2]
[424847195,1781202649000,-151.0,0.0001978,2]
[424847193,1781202649000,-1377.42282658,0.0001978,2]
[424847190,1781202649000,-500.0,0.0001978,2]
[424847192,1781202649000,-151.0,0.0001978,2]
[424847191,1781202649000,-152.0,0.0001978,2]
[424847214,1781202649000,-1592.87721992,0.0001978,2]
[424847202,1781202649000,-721.12765534,0.0001978,2]
[424847204,1781202649000,-151.0,0.0001978,2]
[424847203,1781202649000,-152.0,0.0001978,2]
[424847211,1781202649000,-500.0,0.0001978,2]
[424847207,1781202649000,-152.0,0.0001978,2]
[424847205,1781202649000,-1481.2378076,0.0001978,2]
[424847206,1781202649000,-500.0,0.0001978,2]
[424847210,1781202649000,-1536.04360648,0.0001978,2]
[424847212,1781202649000,-152.0,0.0001978,2]
[424847208,1781202649000,-151.0,0.0001978,2]
[424847209,1781202649000,-151.0,0.0001978,2]
[424847213,1781202649000,-151.0,0.0001978,2]
[424847155,1781202649000,-154.12265554,0.0001978,2]
[424847186,1781202649000,-1280.88388877,0.0001978,2]
[424847183,1781202649000,-151.0,0.0001978,2]
[424847194,1781202649000,-151.0,0.0001978,2]
[424847180,1781202649000,-1502.07435806,0.0001978,2]
[424847187,1781202649000,-500.0,0.0001978,2]
[424847161,1781202649000,-151.0,0.0001978,2]
[424847163,1781202649000,-500.0,0.0001978,2]
[424847162,1781202649000,-151.0,0.0001978,2]
[424847164,1781202649000,-151.0,0.0001978,2]
[424847159,1781202649000,-151.0,0.0001978,2]
[424847158,1781202649000,-500.0,0.0001978,2]
[424847166,1781202649000,-151.0,0.0001978,2]
[424847176,1781202649000,-151.0,0.0001978,2]
[424847175,1781202649000,-1068.11,0.0001978,2]
[424847169,1781202649000,-500.0,0.0001978,2]
[424847167,1781202649000,-500.0,0.0001978,2]
[424847168,1781202649000,-151.0,0.0001978,2]
[424847165,1781202649000,-500.0,0.0001978,2]
[424847173,1781202649000,-151.0,0.0001978,2]
[424847188,1781202649000,-151.0,0.0001978,2]
[424847181,1781202649000,-151.0,0.0001978,2]
[424847185,1781202649000,-151.0,0.0001978,2]
[424847184,1781202649000,-1235.18214925,0.0001978,2]
[424847178,1781202649000,-151.0,0.0001978,2]
[424847179,1781202649000,-1148.61238259,0.0001978,2]
[424847182,1781202649000,-1191.11104074,0.0001978,2]
[424847172,1781202649000,-1030.0,0.0001978,2]
[424847170,1781202649000,-151.0,0.0001978,2]
[424847174,1781202649000,-151.0,0.0001978,2]
[424847171,1781202649000,-151.0,0.0001978,2]
[424847177,1781202649000,-1107.63007,0.0001978,2]
[424847260,1781202650000,-1000.0,0.00019811,2]
[424847258,1781202650000,-1000.0,0.00019811,2]
[424847263,1781202650000,-1008.79341403,0.00019811,2]
[424847255,1781202650000,-1000.0,0.00019811,2]
[424847254,1781202650000,-1000.0,0.00019811,2]
[424847256,1781202650000,-1000.0,0.00019811,2]
[424847245,1781202650000,-1000.0,0.00019811,2]
[424847249,1781202650000,-1000.0,0.00019811,2]
[424847247,1781202650000,-1000.0,0.00019811,2]
[424847246,1781202650000,-1000.0,0.00019811,2]
[424847244,1781202650000,-1000.0,0.00019811,2]
[424847248,1781202650000,-1000.0,0.00019811,2]
[424847250,1781202650000,-1000.0,0.00019811,2]
[424847267,1781202650000,-200.33830666,0.00019835,2]
[424847271,1781202650000,-200.33830666,0.0001989,2]
[424847266,1781202650000,-157.57217,0.00019811,2]
[424847262,1781202650000,-1000.0,0.00019811,2]
[424847264,1781202650000,-157.57217,0.00019811,2]
[424847265,1781202650000,-157.57216,0.00019811,2]
[424847261,1781202650000,-1000.0,0.00019811,2]
[424847259,1781202650000,-1000.0,0.00019811,2]
[424847269,1781202650000,-200.0,0.00019839,2]
[424847279,1781202650000,-466.629508,0.0002,2]
[424847280,1781202650000,-1495.80637961,0.0002,5]
[424847268,1781202650000,-151.0,0.00019835,2]
[424847281,1781202650000,-23191.93504237,0.0002,20]
[424847270,1781202650000,-525.0,0.00019879,3]
[424847243,1781202650000,-1000.0,0.00019811,2]
[424847257,1781202650000,-1000.0,0.00019811,2]
[424847253,1781202650000,-1000.0,0.00019811,2]
[424847219,1781202650000,-500.0,0.0001978,2]
[424847251,1781202650000,-1000.0,0.00019811,2]
[424847217,1781202650000,-152.0,0.0001978,2]
[424847218,1781202650000,-1651.81367706,0.0001978,2]
[424847273,1781202650000,-200.33830666,0.00019945,2]
[424847220,1781202650000,-151.0,0.0001978,2]
[424847215,1781202650000,-500.0,0.0001978,2]
[424847216,1781202650000,-151.0,0.0001978,2]
[424847221,1781202650000,-152.0,0.0001978,2]
[424847222,1781202650000,-1712.93078311,0.0001978,2]
[424847225,1781202650000,-151.0,0.0001978,2]
[424847224,1781202650000,-152.0,0.0001978,2]
[424847223,1781202650000,-500.0,0.0001978,2]
[424847230,1781202650000,-1842.0326633,0.0001978,2]
[424847228,1781202650000,-152.0,0.0001978,2]
[424847252,1781202650000,-1000.0,0.00019811,2]
[424847226,1781202650000,-1776.30922209,0.0001978,2]
[424847233,1781202650000,-1910.18787185,0.0001978,2]
[424847229,1781202650000,-151.0,0.0001978,2]
[424847234,1781202650000,-500.0,0.0001978,2]
[424847232,1781202650000,-151.0,0.0001978,2]
[424847237,1781202650000,-1980.8648231,0.0001978,2]
[424847227,1781202650000,-500.0,0.0001978,2]
[424847235,1781202650000,-152.0,0.0001978,2]
[424847236,1781202650000,-151.0,0.0001978,2]
[424847239,1781202650000,-1000.0,0.00019811,2]
[424847238,1781202650000,-2054.15682156,0.0001978,2]
[424847241,1781202650000,-1000.0,0.00019811,2]
[424847242,1781202650000,-1000.0,0.00019811,2]
[424847240,1781202650000,-1000.0,0.00019811,2]
[424847231,1781202650000,-152.0,0.0001978,2]
[424847275,1781202650000,-200.33830666,0.0002,2]
[424847272,1781202650000,-151.0,0.0001989,2]
[424847276,1781202650000,-151.0,0.0002,2]
[424847313,1781202650000,-1314.640837,0.0002,2]
[424847319,1781202650000,-1791.83,0.0002,2]
[424847310,1781202650000,-1451.861569,0.0002,2]
[424847321,1781202650000,-200.33830666,0.00020055,2]
[424847314,1781202650000,-1314.640837,0.0002,2]
[424847315,1781202650000,-1314.640837,0.0002,2]
[424847316,1781202650000,-1314.640837,0.0002,2]
[424847318,1781202650000,-151.0,0.0002,2]
[424847320,1781202650000,-176.165138,0.0002,2]
[424847323,1781202650000,-200.33830666,0.0002011,2]
[424847333,1781202650000,-518.5,0.00020328,2]
[424847332,1781202650000,-151.0,0.00020275,2]
[424847329,1781202650000,-200.33830666,0.0002022,2]
[424847326,1781202650000,-151.0,0.00020165,2]
[424847325,1781202650000,-200.33830666,0.00020165,2]
[424847331,1781202650000,-200.33830666,0.00020275,2]
[424847324,1781202650000,-151.0,0.0002011,2]
[424847328,1781202650000,-397.03704959,0.000202,2]
[424847322,1781202650000,-151.0,0.00020055,2]
[424847330,1781202650000,-151.0,0.0002022,2]
[424847327,1781202650000,-150.0,0.00020192,3]
[424847334,1781202650000,-181.08010149,0.00020328,2]
[424847336,1781202650000,-151.0,0.00020328,2]
[424847335,1781202650000,-200.0,0.00020328,2]
[424847338,1781202650000,-1502.07435806,0.00020328,2]
[424847337,1781202650000,-151.0,0.00020328,2]
[424847339,1781202650000,-2157.14243826,0.00020328,2]
[424847274,1781202650000,-151.0,0.00019945,2]
[424847341,1781202650000,-151.0,0.0002033,2]
[424847311,1781202650000,-1451.861569,0.0002,2]
[424847317,1781202650000,-260.0,0.0002,2]
[424847340,1781202650000,-200.33830673,0.0002033,2]
[424847309,1781202650000,-1451.861569,0.0002,2]
[424847312,1781202650000,-715.0,0.0002,2]
[424847277,1781202650000,-13023.34505206,0.0002,2]
[424847282,1781202650000,-145797.0,0.0002,2]
[424847284,1781202650000,-179.87415268,0.0002,2]
[424847285,1781202650000,-41180.0,0.0002,2]
[424847286,1781202650000,-81728.0,0.0002,2]
[424847292,1781202650000,-190.35963914,0.0002,2]
[424847288,1781202650000,-397.03704959,0.0002,2]
[424847293,1781202650000,-190.35963915,0.0002,2]
[424847283,1781202650000,-433.728375,0.0002,2]
[424847289,1781202650000,-190.35963914,0.0002,2]
[424847290,1781202650000,-190.35963914,0.0002,2]
[424847287,1781202650000,-3092.0,0.0002,2]
[424847291,1781202650000,-190.35963914,0.0002,2]
[424847278,1781202650000,-8725.0,0.0002,2]
[424847304,1781202650000,-241.0,0.0002,2]
[424847294,1781202650000,-400.0,0.0002,2]
[424847299,1781202650000,-206.0,0.0002,2]
[424847298,1781202650000,-345.0,0.0002,2]
[424847297,1781202650000,-880.0,0.0002,2]
[424847301,1781202650000,-364.0,0.0002,2]
[424847303,1781202650000,-389.0,0.0002,2]
[424847300,1781202650000,-802.0,0.0002,2]
[424847308,1781202650000,-7016.0,0.0002,2]
[424847295,1781202650000,-248.0,0.0002,2]
[424847307,1781202650000,-1451.861569,0.0002,2]
[424847305,1781202650000,-153.08496381,0.0002,20]
[424847306,1781202650000,-199.0,0.0002,2]
[424847296,1781202650000,-269.0,0.0002,2]
[424847302,1781202650000,-1292.0,0.0002,2]
[424847393,1781202651000,-200.0,0.00021424,2]
[424847384,1781202651000,-150.0,0.00021333,2]
[424847386,1781202651000,-382.0,0.00021343,2]
[424847394,1781202651000,-151.0,0.00021424,2]
[424847383,1781202651000,-653.08,0.000212,2]
[424847375,1781202651000,-389.0,0.00021,2]
[424847374,1781202651000,-1292.0,0.00021,2]
[424847380,1781202651000,-500.0,0.00021051,2]
[424847379,1781202651000,-260.0,0.00021,2]
[424847381,1781202651000,-525.0,0.00021131,4]
[424847377,1781202651000,-199.0,0.00021,2]
[424847378,1781202651000,-715.0,0.00021,2]
[424847395,1781202651000,-151.27920566,0.00021424,2]
[424847392,1781202651000,-194.72792766,0.00021424,2]
[424847382,1781202651000,-473.64339052,0.000212,2]
[424847389,1781202651000,-3556.0,0.00021343,2]
[424847388,1781202651000,-6076.0,0.00021343,2]
[424847391,1781202651000,-557.5788265,0.00021424,2]
[424847387,1781202651000,-1227.0,0.00021343,2]
[424847390,1781202651000,-473.64339052,0.000214,2]
[424847396,1781202651000,-1502.07435806,0.00021424,2]
[424847398,1781202651000,-350.0,0.00021571,2]
[424847401,1781202651000,-500.0,0.00021683,2]
[424847400,1781202651000,-1791.83,0.00021669,2]
[424847397,1781202651000,-2319.72410669,0.00021424,2]
[424847399,1781202651000,-473.64339052,0.000216,2]
[424847376,1781202651000,-241.0,0.00021,2]
[424847404,1781202651000,-5694.3833352,0.000219,5]
[424847385,1781202651000,-1274.0,0.00021343,2]
[424847371,1781202651000,-206.0,0.00021,2]
[424847357,1781202651000,-200.0,0.00020876,2]
[424847373,1781202651000,-364.0,0.00021,2]
[424847403,1781202651000,-361.30916566,0.00021872,2]
[424847343,1781202651000,-1183.3,0.00020381,2]
[424847344,1781202651000,-397.03704959,0.000204,2]
[424847346,1781202651000,-525.0,0.00020505,4]
[424847345,1781202651000,-500.0,0.00020438,2]
[424847348,1781202651000,-150.0,0.0002058,2]
[424847342,1781202651000,-2000.0,0.00020371,7]
[424847347,1781202651000,-150.0,0.0002058,2]
[424847349,1781202651000,-151.29325014,0.0002058,2]
[424847351,1781202651000,-200.0,0.000207,10]
[424847352,1781202651000,-397.03704959,0.000208,2]
[424847350,1781202651000,-397.03704959,0.000206,2]
[424847353,1781202651000,-300.0,0.000208,10]
[424847372,1781202651000,-802.0,0.00021,2]
[424847354,1781202651000,-1124.99999999,0.00020853,2]
[424847367,1781202651000,-248.0,0.00021,2]
[424847358,1781202651000,-151.0,0.00020876,2]
[424847368,1781202651000,-269.0,0.00021,2]
[424847369,1781202651000,-880.0,0.00021,2]
[424847365,1781202651000,-15000.0,0.00021,2]
[424847366,1781202651000,-2656.1758339,0.00021,2]
[424847363,1781202651000,-466.629508,0.00021,2]
[424847362,1781202651000,-459.54652211,0.00020963,2]
[424847359,1781202651000,-151.0,0.00020876,2]
[424847356,1781202651000,-187.78006524,0.00020876,2]
[424847364,1781202651000,-473.64339052,0.00021,2]
[424847360,1781202651000,-1502.07435806,0.00020876,2]
[424847361,1781202651000,-2236.95670847,0.00020876,2]
[424847355,1781202651000,-537.6845,0.00020876,2]
[424847409,1781202651000,-578.20924308,0.00021972,2]
[424847370,1781202651000,-345.0,0.00021,2]
[424847402,1781202651000,-525.0,0.00021758,5]
[424847439,1781202651000,-747.80937859,0.00022519,2]
[424847440,1781202651000,-608.68743041,0.0002252,2]
[424847442,1781202651000,-151.0,0.0002252,2]
[424847441,1781202651000,-209.40437684,0.0002252,2]
[424847443,1781202651000,-1502.07435806,0.0002252,2]
[424847444,1781202651000,-2494.55939288,0.0002252,2]
[424847447,1781202651000,-11533.36,0.00022691,2]
[424847448,1781202651000,-1904.64,0.00022691,2]
[424847445,1781202651000,-300.0,0.0002269,2]
[424847456,1781202651000,-880.0,0.00023,2]
[424847449,1781202651000,-3102.91,0.00022691,2]
[424847455,1781202651000,-269.0,0.00023,2]
[424847446,1781202651000,-784.89,0.00022691,2]
[424847463,1781202651000,-241.0,0.00023,2]
[424847454,1781202651000,-248.0,0.00023,2]
[424847452,1781202651000,-300.0,0.00022999,2]
[424847450,1781202651000,-26046.27,0.00022691,2]
[424847453,1781202651000,-466.629508,0.00023,2]
[424847467,1781202651000,-500.0,0.00023003,2]
[424847466,1781202651000,-260.0,0.00023,2]
[424847458,1781202651000,-206.0,0.00023,2]
[424847460,1781202651000,-364.0,0.00023,2]
[424847459,1781202651000,-802.0,0.00023,2]
[424847461,1781202651000,-1292.0,0.00023,2]
[424847462,1781202651000,-389.0,0.00023,2]
[424847465,1781202651000,-715.0,0.00023,2]
[424847464,1781202651000,-199.0,0.00023,2]
[424847407,1781202651000,-150.0,0.00021918,2]
[424847451,1781202651000,-784.89,0.00022691,2]
[424847438,1781202651000,-151.0,0.00022519,2]
[424847457,1781202651000,-345.0,0.00023,2]
[424847436,1781202651000,-2145.23,0.00022466,2]
[424847437,1781202651000,-599.60298507,0.00022519,2]
[424847405,1781202651000,-473.64339052,0.000219,2]
[424847406,1781202651000,-5000.0,0.00021918,2]
[424847408,1781202651000,-150.0,0.00021918,2]
[424847417,1781202651000,-450.0,0.00022,2]
[424847411,1781202651000,-333.81194748,0.00021972,2]
[424847415,1781202651000,-2043.6765794,0.00021999,10]
[424847414,1781202651000,-2405.55389863,0.00021972,2]
[424847420,1781202651000,-880.0,0.00022,2]
[424847413,1781202651000,-1502.07435806,0.00021972,2]
[424847418,1781202651000,-248.0,0.00022,2]
[424847412,1781202651000,-151.0,0.00021972,2]
[424847419,1781202651000,-269.0,0.00022,2]
[424847416,1781202651000,-466.629508,0.00022,2]
[424847410,1781202651000,-201.93286098,0.00021972,2]
[424847426,1781202651000,-389.0,0.00022,2]
[424847434,1781202651000,-525.0,0.00022384,6]
[424847421,1781202651000,-345.0,0.00022,2]
[424847435,1781202651000,-1614.16,0.00022466,2]
[424847433,1781202651000,-1183.3,0.00022353,2]
[424847429,1781202651000,-715.0,0.00022,2]
[424847422,1781202651000,-206.0,0.00022,2]
[424847432,1781202651000,-500.0,0.00022333,2]
[424847425,1781202651000,-1292.0,0.00022,2]
[424847430,1781202651000,-260.0,0.00022,2]
[424847428,1781202651000,-199.0,0.00022,2]
[424847427,1781202651000,-241.0,0.00022,2]
[424847424,1781202651000,-364.0,0.00022,2]
[424847423,1781202651000,-802.0,0.00022,2]
[424847431,1781202651000,-560.27,0.00022,2]
[424847493,1781202652000,-370.0,0.00024,2]
[424847498,1781202652000,-728.0,0.00024,2]
[424847492,1781202652000,-821.0,0.00024,2]
[424847497,1781202652000,-215.0,0.00024,2]
[424847491,1781202652000,-222.0,0.00024,2]
[424847494,1781202652000,-1306.0,0.00024,2]
[424847495,1781202652000,-401.29885595,0.00024,2]
[424847496,1781202652000,-244.0,0.00024,2]
[424847504,1781202652000,-525.0,0.00024263,7]
[424847503,1781202652000,-150.0,0.00024164,2]
[424847501,1781202652000,-1502.07435806,0.00024164,2]
[424847505,1781202652000,-1183.3,0.00024324,2]
[424847506,1781202652000,-1274.0,0.00024343,2]
[424847499,1781202652000,-279.0,0.00024,2]
[424847500,1781202652000,-233.5188934,0.00024164,2]
[424847507,1781202652000,-382.0,0.00024343,2]
[424847509,1781202652000,-6076.0,0.00024343,2]
[424847490,1781202652000,-356.0,0.00024,2]
[424847513,1781202652000,-1000.0,0.00024658,2]
[424847502,1781202652000,-2781.82699784,0.00024164,2]
[424847489,1781202652000,-897.0,0.00024,2]
[424847474,1781202652000,-2586.85809042,0.00023068,2]
[424847484,1781202652000,-500.0,0.00023693,2]
[424847515,1781202652000,-151.0,0.00024658,2]
[424847468,1781202652000,-525.0,0.0002301,6]
[424847469,1781202652000,-150.0,0.00023014,2]
[424847472,1781202652000,-165.55515187,0.00023068,2]
[424847473,1781202652000,-1502.07435806,0.00023068,2]
[424847470,1781202652000,-300.0,0.00023066,2]
[424847471,1781202652000,-217.15233878,0.00023068,2]
[424847477,1781202652000,-1791.83,0.00023339,7]